bitfinex/quotes_BTCUSD_20250519
["timestamp","ask_amount","ask_price","bid_price","bid_amount"]
[1747654176312,0.23296342,103020.0,103010.0,0.62363417]
[1747654179838,0.02911894,103020.0,103010.0,0.6333413]
[1747654180032,0.01941237,103020.0,103010.0,0.64788215]
[1747654180269,0.0388255,103020.0,103010.0,0.63817502]
[1747654180445,0.02911884,103020.0,103010.0,0.64788215]
[1747654180751,0.24266931,103020.0,103010.0,0.64788215]
[1747654182076,0.23296379,103020.0,103010.0,0.56181193]
[1747654182380,0.22325732,103020.0,103010.0,0.57151953]
[1747654182550,0.22325732,103020.0,103010.0,0.59093445]
[1747654182766,0.22325732,103020.0,103010.0,0.60064177]
[1747654182975,0.22325732,103020.0,103010.0,0.60064073]
[1747654183493,0.22325732,103020.0,103010.0,0.57151906]
[1747654185339,0.22325732,103020.0,103010.0,0.58122638]
[1747654188903,0.19997157,103020.0,103010.0,0.58122638]
[1747654189207,0.20967832,103020.0,103010.0,0.5909336]
[1747654190843,0.21938498,103020.0,103010.0,0.5909336]
[1747654192426,0.18445635,103020.0,103010.0,0.5909336]
[1747654192840,0.18445635,103020.0,103010.0,0.57898536]
[1747654193068,0.18445635,103020.0,103010.0,0.59538536]
[1747654193576,0.01941247,103020.0,103010.0,0.62019249]
[1747654193774,0.02911904,103020.0,103010.0,0.62019249]
[1747654193986,0.01941247,103020.0,103010.0,0.62019249]
[1747654197165,0.02911904,103020.0,103010.0,0.62019249]
[1747654197365,0.01941078,103030.0,103020.0,0.22325647]
[1747654197571,0.01941068,103030.0,103020.0,0.25445647]
[1747654197782,0.0291163,103030.0,103020.0,0.25445647]
[1747654197955,0.03882202,103030.0,103020.0,0.25445647]
[1747654198099,0.0291163,103030.0,103020.0,0.25445647]
[1747654198510,0.03882202,103030.0,103020.0,0.25645647]
[1747654198716,0.23294023,103030.0,103020.0,0.25645647]
[1747654198917,0.24264614,103030.0,103020.0,0.25645647]
[1747654199170,0.24264614,103030.0,103020.0,0.25645666]
[1747654199568,0.24264614,103030.0,103020.0,0.26616294]
[1747654199775,0.25473546,103030.0,103020.0,0.21555038]
[1747654200348,0.22323546,103030.0,103020.0,0.21555038]
[1747654200547,0.23532412,103030.0,103020.0,0.002]
[1747654200734,0.23532412,103030.0,103020.0,0.20584391]
[1747654200944,0.23532412,103030.0,103020.0,0.21555066]
[1747654201933,0.20382412,103030.0,103020.0,0.21555066]
[1747654202757,0.39022412,103030.0,103020.0,0.21555066]
[1747654203199,0.39022412,103030.0,103020.0,0.59585713]
[1747654203200,0.39988974,103030.0,103020.0,0.59585713]
[1747654203411,0.00970478,103040.0,103030.0,0.22321941]
[1747654203584,0.40957351,103040.0,103030.0,0.21351416]
[1747654203814,0.40957351,103040.0,103030.0,0.21351435]
[1747654204134,0.38629042,103040.0,103030.0,0.21351435]
[1747654204329,0.4183908,103040.0,103030.0,0.19410282]
[1747654204540,0.4183908,103040.0,103030.0,0.20385389]
[1747654204742,0.4183908,103040.0,103030.0,4.516e-05]
[1747654204989,0.40868593,103040.0,103030.0,4.516e-05]
[1747654205365,0.40968593,103040.0,103030.0,4.516e-05]
[1747654209928,0.40968593,103040.0,103030.0,0.00979981]
[1747654210297,0.22332593,103040.0,103030.0,0.22332955]
[1747654210518,0.40964593,103040.0,103030.0,0.21362383]
[1747654210733,0.40964593,103040.0,103030.0,0.00979981]
[1747654214634,0.40964593,103040.0,103030.0,0.20391802]
[1747654214855,0.40964593,103040.0,103030.0,0.00979981]
[1747654218618,0.40964593,103040.0,103030.0,4.516e-05]
[1747654219227,0.50695533,103040.0,103030.0,4.516e-05]
[1747654220025,0.50695533,103040.0,103030.0,0.00519597]
[1747654220439,0.50695533,103040.0,103030.0,0.01489743]
[1747654220648,0.50695533,103040.0,103030.0,0.00519597]
[1747654221885,0.37746593,103040.0,103030.0,0.20901999]
[1747654222084,0.19122593,103040.0,103030.0,0.20901999]
[1747654222428,0.19122593,103040.0,103030.0,0.00519597]
[1747654222636,0.19122593,103040.0,103030.0,4.516e-05]
[1747654223489,0.22312593,103040.0,103030.0,4.516e-05]
[1747654223658,0.32043533,103040.0,103030.0,4.516e-05]
[1747654224130,0.50679533,103040.0,103030.0,4.516e-05]
[1747654225183,0.66999614,103040.0,103030.0,4.516e-05]
[1747654225760,0.66999614,103040.0,103030.0,0.00391001]
[1747654228096,0.50679533,103040.0,103030.0,0.00391001]
[1747654236392,0.66999614,103040.0,103030.0,0.00391001]
[1747654237621,0.69295533,103040.0,103030.0,0.00391001]
[1747654237815,0.32043533,103040.0,103030.0,0.00391001]
[1747654238517,0.48363614,103040.0,103030.0,0.00391001]
[1747654240988,0.48363614,103040.0,103030.0,4.516e-05]
[1747654241289,0.85591614,103040.0,103030.0,4.516e-05]
[1747654246114,0.85591614,103040.0,103030.0,0.00391001]
[1747654251200,1.01911695,103040.0,103030.0,0.00391001]
[1747654252433,0.85591614,103040.0,103030.0,0.00391001]
[1747654253001,0.85591614,103040.0,103030.0,4.516e-05]
[1747654262451,2.05751695,103040.0,103030.0,4.516e-05]
[1747654263183,2.05643695,103040.0,103030.0,4.516e-05]
[1747654263624,2.05943695,103040.0,103030.0,4.516e-05]
[1747654264297,0.91115172,103020.0,103010.0,0.00901672]
[1747654264521,1.79982112,103020.0,103010.0,0.00906804]
[1747654264995,1.63662031,103020.0,103010.0,0.00906804]
[1747654265224,1.63650031,103020.0,103010.0,0.00906804]
[1747654265610,1.79970112,103020.0,103010.0,5.132e-05]
[1747654266011,1.42766112,103020.0,103010.0,5.132e-05]
[1747654266168,1.79966112,103020.0,103010.0,5.132e-05]
[1747654266776,1.79966112,103020.0,103010.0,0.00105132]
[1747654266976,1.81424938,103020.0,103010.0,0.00105132]
[1747654268628,2.51264938,103020.0,103010.0,0.00105132]
[1747654270822,2.34944857,103020.0,103010.0,0.00105132]
[1747654271033,1.6144595,103020.0,103010.0,0.00105132]
[1747654271304,1.8004595,103020.0,103010.0,0.00105132]
[1747654272089,1.8004995,103020.0,103010.0,0.03315132]
[1747654272288,1.6144995,103020.0,103010.0,0.03315132]
[1747654272755,1.8004995,103020.0,103010.0,0.03315132]
[1747654276325,1.8004995,103020.0,103010.0,0.03701617]
[1747654278294,1.96370031,103020.0,103010.0,0.03701617]
[1747654278506,1.99590031,103020.0,103010.0,0.00491617]
[1747654278714,2.15910112,103020.0,103010.0,0.00491617]
[1747654280233,2.33590031,103020.0,103010.0,0.00105132]
[1747654283252,2.49910112,103020.0,103010.0,0.00105132]
[1747654285198,2.49906112,103020.0,103010.0,0.00105132]
[1747654287093,2.14990031,103020.0,103010.0,0.00105132]
[1747654287310,2.30366031,103020.0,103010.0,0.00105132]
[1747654288054,2.30216031,103020.0,103010.0,0.00105132]
[1747654288447,1.93016031,103020.0,103010.0,0.00105132]
[1747654288689,2.49586112,103020.0,103010.0,0.00105132]
[1747654292396,2.48046112,103020.0,103010.0,0.00105132]
[1747654292601,2.09336112,103020.0,103010.0,0.00105132]
[1747654292803,2.46536112,103020.0,103010.0,0.00105132]
[1747654294290,2.30216031,103020.0,103010.0,0.00105132]
[1747654294498,2.33446031,103020.0,103010.0,0.00105132]
[1747654296876,2.31836031,103020.0,103010.0,0.00105132]
[1747654298234,2.30216031,103020.0,103010.0,0.00105132]
[1747654299978,2.46536112,103020.0,103010.0,0.00105132]
[1747654300719,2.30216031,103020.0,103010.0,0.00105132]
[1747654301778,2.31826031,103020.0,103010.0,0.00105132]
[1747654303520,2.11620031,103020.0,103010.0,0.00105132]
[1747654303639,2.30212031,103020.0,103010.0,0.00105132]
[1747654305845,2.30212031,103020.0,103010.0,0.03385132]
[1747654305846,1.96212031,103020.0,103010.0,0.03385132]
[1747654305992,1.59016031,103020.0,103010.0,0.03385132]
[1747654306179,1.96196031,103020.0,103010.0,0.03385132]
[1747654306382,1.96196031,103020.0,103010.0,0.01755132]
[1747654307456,1.96196031,103020.0,103010.0,0.00105132]
[1747654310055,1.96196031,103020.0,103010.0,0.03235132]
[1747654310900,1.7987595,103020.0,103010.0,0.03235132]
[1747654311442,1.6128795,103020.0,103010.0,0.03235132]
[1747654311693,1.7987595,103020.0,103010.0,0.03235132]
[1747654311941,1.4269595,103020.0,103010.0,0.03235132]
[1747654312140,1.1936795,103020.0,103010.0,0.03235132]
[1747654312349,1.36985312,103020.0,103010.0,0.03235132]
[1747654312698,1.18393312,103020.0,103010.0,0.03235132]
[1747654313883,1.36981312,103020.0,103010.0,0.03235132]
[1747654314301,1.36981312,103020.0,103010.0,0.03750319]
[1747654316120,1.18397312,103020.0,103010.0,0.03750319]
[1747654316346,1.36981312,103020.0,103010.0,0.03750319]
[1747654316601,0.29965312,103020.0,103010.0,0.03750319]
[1747654320988,0.29965312,103020.0,103010.0,0.03614188]
[1747654322683,0.67153312,103020.0,103010.0,0.03614188]
[1747654322896,0.29965312,103020.0,103010.0,0.03614188]
[1747654323123,0.48581312,103020.0,103010.0,0.03614188]
[1747654323647,0.48581312,103020.0,103010.0,0.04129375]
[1747654329890,0.48581312,103020.0,103010.0,0.00999375]
[1747654332155,1.43270773,103020.0,103010.0,0.00999375]
[1747654332612,1.18397697,103020.0,103010.0,0.00999375]
[1747654332821,1.10654388,103020.0,103010.0,0.00999375]
[1747654333054,1.10654388,103020.0,103010.0,0.00105132]
[1747654333883,0.67209312,103020.0,103010.0,0.00105132]
[1747654334329,0.70239312,103020.0,103010.0,0.00105132]
[1747654334516,0.95112388,103020.0,103010.0,0.00105132]
[1747654336270,0.57868388,103020.0,103010.0,0.00105132]
[1747654336416,0.95120388,103020.0,103010.0,0.00105132]
[1747654337071,0.92090388,103020.0,103010.0,0.00105132]
[1747654337741,1.61930388,103020.0,103010.0,0.00105132]
[1747654340001,1.65050388,103020.0,103010.0,0.00105132]
[1747654340361,1.99050388,103020.0,103010.0,0.00105132]
[1747654345084,2.40974388,103020.0,103010.0,0.00105132]
[1747654347751,2.32429905,103020.0,103010.0,0.00105132]
[1747654352471,2.48758498,103020.0,103010.0,0.00105132]
[1747654355550,2.32429905,103020.0,103010.0,0.00105132]
[1747654355983,2.48758498,103020.0,103010.0,0.00105132]
[1747654356810,1.78918498,103020.0,103010.0,0.00105132]
[1747654358222,1.80372583,103020.0,103010.0,0.00105132]
[1747654367258,1.78834498,103020.0,103010.0,0.00105132]
[1747654367646,1.41666498,103020.0,103010.0,0.00105132]
[1747654367846,1.78834498,103020.0,103010.0,0.00105132]
[1747654369680,1.82431229,103020.0,103010.0,0.00105132]
[1747654370057,1.80288583,103020.0,103010.0,0.00105132]
[1747654371918,1.61704583,103020.0,103010.0,0.00105132]
[1747654372131,1.80288583,103020.0,103010.0,0.00105132]
[1747654377596,1.75714498,103020.0,103010.0,0.00105132]
[1747654378020,1.40801905,103020.0,103010.0,0.00105132]
[1747654378237,1.05889312,103020.0,103010.0,0.03235132]
[1747654378465,1.43057312,103020.0,103010.0,0.03235132]
[1747654378683,1.22217905,103020.0,103010.0,0.01655132]
[1747654378892,1.59385905,103020.0,103010.0,0.00105132]
[1747654379115,1.75714498,103020.0,103010.0,0.00105132]
[1747654379756,1.67940134,103020.0,103010.0,0.00105132]
[1747654380469,1.49356134,103020.0,103010.0,0.00105132]
[1747654380675,1.67940134,103020.0,103010.0,0.03235132]
[1747654382934,1.67940134,103020.0,103010.0,0.00105132]
[1747654383358,1.67936134,103020.0,103010.0,0.00105132]
[1747654383555,1.71166134,103020.0,103010.0,0.00105132]
[1747654383769,1.96048956,103020.0,103010.0,0.00105132]
[1747654383978,2.07233981,103020.0,103010.0,0.00105132]
[1747654384163,1.97503041,103020.0,103010.0,0.00105132]
[1747654384318,2.00417041,103020.0,103010.0,0.00105132]
[1747654384720,2.00417041,103020.0,103010.0,5.132e-05]
[1747654385209,2.00617041,103020.0,103010.0,5.132e-05]
[1747654387124,2.00717041,103020.0,103010.0,5.132e-05]
[1747654398830,1.75834219,103020.0,103010.0,5.132e-05]
[1747654399035,2.00717041,103020.0,103010.0,5.132e-05]
[1747654399674,1.83616171,103020.0,103010.0,5.132e-05]
[1747654407038,1.93347111,103020.0,103010.0,5.132e-05]
[1747654407466,2.09679498,103020.0,103010.0,5.132e-05]
[1747654408311,2.09579498,103020.0,103010.0,5.132e-05]
[1747654408521,2.10379498,103020.0,103010.0,5.132e-05]
[1747654408738,2.10679498,103020.0,103010.0,5.132e-05]
[1747654408949,2.10979498,103020.0,103010.0,5.132e-05]
[1747654417957,2.10971498,103020.0,103010.0,5.132e-05]
[1747654418161,1.94639111,103020.0,103010.0,5.132e-05]
[1747654426654,1.56483111,103020.0,103010.0,5.132e-05]
[1747654426856,1.93623111,103020.0,103010.0,5.132e-05]
[1747654429444,1.90393111,103020.0,103010.0,5.132e-05]
[1747654429894,1.80662171,103020.0,103010.0,0.03245132]
[1747654430337,1.43522171,103020.0,103010.0,0.03245132]
[1747654430545,1.80662171,103020.0,103010.0,0.03245132]
[1747654430754,1.80662171,103020.0,103010.0,0.01655132]
[1747654432694,1.80662171,103020.0,103010.0,5.132e-05]
[1747654432918,2.09935498,103020.0,103010.0,5.132e-05]
[1747654435116,2.09935498,103020.0,103010.0,5.132e-05]
[1747654440415,1.93603111,103020.0,103010.0,5.132e-05]
[1747654441614,2.12665097,103020.0,103010.0,5.132e-05]
[1747654443084,0.21359155,103000.0,102990.0,0.0321]
[1747654443314,0.21367454,102960.0,102950.0,0.07743309]
[1747654443522,0.56169348,102960.0,102950.0,0.07791109]
[1747654443733,0.67842723,102960.0,102950.0,0.08101789]
[1747654443945,0.67842723,102960.0,102950.0,0.11251789]
[1747654444355,0.67842723,102960.0,102950.0,0.0350848]
[1747654445971,0.67942723,102960.0,102950.0,0.0390848]
[1747654446194,0.68042723,102960.0,102950.0,0.0440848]
[1747654446871,0.69424726,102960.0,102950.0,0.0390848]
[1747654447075,0.69524726,102960.0,102950.0,0.0440848]
[1747654447889,0.85857113,102960.0,102950.0,0.0440848]
[1747654448325,0.69524726,102960.0,102950.0,0.0440848]
[1747654450504,0.50952726,102960.0,102950.0,0.0440848]
[1747654450730,0.21179783,102960.0,102950.0,0.0440848]
[1747654450934,0.58299783,102960.0,102950.0,0.0440848]
[1747654452915,0.21179783,102960.0,102950.0,0.0440848]
[1747654453164,0.58299783,102960.0,102950.0,0.0440848]
[1747654457401,0.58295783,102960.0,102950.0,0.0440848]
[1747654463756,0.58295783,102960.0,102950.0,0.05399584]
[1747654466293,0.58295783,102960.0,102950.0,0.0440848]
[1747654466518,0.8435911,102960.0,102950.0,0.0440848]
[1747654466738,0.8435911,102960.0,102950.0,0.0125848]
[1747654467759,0.8435911,102960.0,102950.0,0.0286848]
[1747654470631,0.8435911,102960.0,102950.0,0.0125848]
[1747654472431,0.8935911,102960.0,102950.0,0.0125848]
[1747654474812,0.8435911,102960.0,102950.0,0.0125848]
[1747654476245,1.00691497,102960.0,102950.0,0.0125848]
[1747654476457,1.03881497,102960.0,102950.0,0.0125848]
[1747654477283,1.08881497,102960.0,102950.0,0.0125848]
[1747654477483,1.42881497,102960.0,102950.0,0.0125848]
[1747654477738,1.42781497,102960.0,102950.0,0.0085848]
[1747654478113,1.42681497,102960.0,102950.0,0.0045848]
[1747654478314,1.42681497,102960.0,102950.0,0.0055848]
[1747654479416,1.37681497,102960.0,102950.0,0.0055848]
[1747654480481,1.40597197,102960.0,102950.0,0.0055848]
[1747654480699,1.56929584,102960.0,102950.0,0.002478]
[1747654480921,1.40597197,102960.0,102950.0,0.002478]
[1747654481688,1.40597197,102960.0,102950.0,0.001478]
[1747654481889,1.42051282,102960.0,102950.0,0.000478]
[1747654482098,1.58483669,102960.0,102950.0,0.000478]
[1747654482352,1.63483669,102960.0,102950.0,0.000478]
[1747654482520,1.47151282,102960.0,102950.0,0.000478]
[1747654483523,1.47251282,102960.0,102950.0,0.000478]
[1747654486221,1.65811872,102960.0,102950.0,0.000478]
[1747654486423,1.49479485,102960.0,102950.0,0.000478]
[1747654486630,1.47251282,102960.0,102950.0,0.000478]
[1747654488847,1.64583669,102960.0,102950.0,0.000478]
[1747654489875,1.64483669,102960.0,102950.0,0.000478]
[1747654490134,1.64683669,102960.0,102950.0,0.000478]
[1747654490559,1.70669172,102960.0,102950.0,0.000478]
[1747654490770,1.79400112,102960.0,102950.0,0.000478]
[1747654490922,1.80400112,102960.0,102950.0,0.000478]
[1747654491452,1.74714609,102960.0,102950.0,0.000478]
[1747654491617,0.21375758,102920.0,102910.0,0.05403934]
[1747654491819,0.68206698,102920.0,102910.0,0.05410442]
[1747654492039,0.68206698,102920.0,102910.0,0.05721297]
[1747654492247,0.68206698,102920.0,102910.0,0.07221297]
[1747654493105,0.68306698,102920.0,102910.0,0.07721297]
[1747654493683,0.68406698,102920.0,102910.0,0.08121297]
[1747654498227,0.31306698,102920.0,102910.0,0.08121297]
[1747654498425,0.68406698,102920.0,102910.0,0.08121297]
[1747654498982,0.31306698,102920.0,102910.0,0.08121297]
[1747654499188,0.68406698,102920.0,102910.0,0.08121297]
[1747654502119,0.68406698,102920.0,102910.0,0.27555754]
[1747654502329,0.21658742,102920.0,102910.0,0.30470808]
[1747654502546,0.01171552,102920.0,102910.0,0.64470808]
[1747654502762,0.002,102920.0,102910.0,0.65924893]
[1747654502983,0.39926266,102950.0,102940.0,0.0313]
[1747654503198,0.22340827,102950.0,102940.0,0.0313]
[1747654503396,0.21369548,102950.0,102940.0,0.03440855]
[1747654503539,0.31100488,102950.0,102940.0,0.03440855]
[1747654504248,0.31200488,102950.0,102940.0,0.03840855]
[1747654504449,0.49744488,102950.0,102940.0,0.03840855]
[1747654504625,0.49744488,102950.0,102940.0,0.03740855]
[1747654505039,0.49744488,102950.0,102940.0,0.04040855]
[1747654506045,0.31200488,102950.0,102940.0,0.04040855]
[1747654506252,0.49744488,102950.0,102940.0,0.04040855]
[1747654511018,0.49744488,102950.0,102940.0,0.23469648]
[1747654511226,0.01071335,102950.0,102940.0,0.24441087]
[1747654511502,0.02042557,102950.0,102940.0,0.61355291]
[1747654511722,0.03013846,102950.0,102940.0,0.61355291]
[1747654511936,0.02042548,102950.0,102940.0,0.61355291]
[1747654512147,0.03013846,102950.0,102940.0,0.61355291]
[1747654512824,0.03985172,102950.0,102940.0,0.61355291]
[1747654513035,0.24383413,102950.0,102940.0,0.61355291]
[1747654513241,0.04956507,102950.0,102940.0,0.61355291]
[1747654515802,0.03985172,102950.0,102940.0,0.61355291]
[1747654517751,0.03013855,102950.0,102940.0,0.61355291]
[1747654517965,0.01071269,102950.0,102940.0,0.61355291]
[1747654518167,0.02042567,102950.0,102940.0,0.61355291]
[1747654518378,0.0107126,102950.0,102940.0,0.62809376]
[1747654518567,0.001,102950.0,102940.0,0.62809376]
[1747654519231,0.3796086,102970.0,102960.0,0.22338685]
[1747654519232,0.23307571,102970.0,102960.0,0.22338685]
[1747654519445,0.02913299,102970.0,102960.0,0.26439869]
[1747654519664,0.60373455,102980.0,102970.0,0.23524279]
[1747654519875,0.60373455,102980.0,102970.0,0.25466544]
[1747654520486,0.5940244,102980.0,102970.0,0.2255964]
[1747654520635,0.5940244,102980.0,102970.0,0.23530796]
[1747654520839,0.58431397,102980.0,102970.0,0.23730796]
[1747654521097,0.58431397,102980.0,102970.0,0.24041651]
[1747654523267,0.58431397,102980.0,102970.0,0.25012798]
[1747654523478,0.37068,102980.0,102970.0,0.27926116]
[1747654523691,0.00970977,102980.0,102970.0,0.29380201]
[1747654523931,0.02913016,102980.0,102970.0,0.29380201]
[1747654525360,0.01941982,102980.0,102970.0,0.29380201]
[1747654525770,0.02912978,102980.0,102970.0,0.29380201]
[1747654526156,0.03884021,102980.0,102970.0,0.29380201]
[1747654526623,0.21363351,102980.0,102970.0,0.23070495]
[1747654526844,0.21363351,102980.0,102970.0,0.03647363]
[1747654527674,0.56000936,102980.0,102970.0,0.00517363]
[1747654527877,0.77652936,102980.0,102970.0,0.00517363]
[1747654528094,0.52746291,102980.0,102970.0,0.00517363]
[1747654532173,0.51156291,102980.0,102970.0,0.00517363]
[1747654534401,0.49626291,102980.0,102970.0,0.00517363]
[1747654536549,0.51206291,102980.0,102970.0,0.00517363]
[1747654538124,0.52716291,102980.0,102970.0,0.00517363]
[1747654538326,0.77622936,102980.0,102970.0,0.00517363]
[1747654540736,0.52716291,102980.0,102970.0,0.00517363]
[1747654542177,0.49626291,102980.0,102970.0,0.00517363]
[1747654542387,0.31094291,102980.0,102970.0,0.03647363]
[1747654542596,0.68142291,102980.0,102970.0,0.03647363]
[1747654542784,0.49618291,102980.0,102970.0,0.03647363]
[1747654547759,0.31094291,102980.0,102970.0,0.02137363]
[1747654547970,0.49618291,102980.0,102970.0,0.02137363]
[1747654548174,0.49618291,102980.0,102970.0,0.00517363]
[1747654557471,0.49618291,102980.0,102970.0,0.02077363]
[1747654558185,0.31094291,102980.0,102970.0,0.02077363]
[1747654558390,0.32065296,102980.0,102970.0,0.2591386]
[1747654558574,0.01942001,102980.0,102970.0,0.2445458]
[1747654558769,0.23305323,102980.0,102970.0,0.26396864]
[1747654559425,0.18452248,102980.0,102970.0,0.28380111]
[1747654559631,0.37947892,102990.0,102980.0,0.23582298]
[1747654559749,0.79893476,103000.0,102980.0,0.23582298]
[1747654559950,0.19494836,103000.0,102990.0,0.25522179]
[1747654560157,0.41820836,103000.0,102990.0,0.24551268]
[1747654560782,0.01941662,103000.0,102990.0,0.23580329]
[1747654560998,0.22429925,103000.0,102990.0,0.27947185]
[1747654561212,0.22429991,103000.0,102990.0,0.26976283]
[1747654561423,0.22429991,103000.0,102990.0,0.27947203]
[1747654562083,0.22529991,103000.0,102990.0,0.27947203]
[1747654562314,0.22329991,103000.0,102990.0,0.27947203]
[1747654562526,0.58393217,103010.0,103000.0,0.24579175]
[1747654562749,0.59363949,103010.0,103000.0,0.25550001]
[1747654563159,0.58393217,103010.0,103000.0,0.24579175]
[1747654564012,0.57422457,103010.0,103000.0,0.23608339]
[1747654564214,0.57422457,103010.0,103000.0,0.24579193]
[1747654567108,0.57422457,103010.0,103000.0,0.25550038]
[1747654567329,0.00970694,103010.0,103000.0,0.28945766]
[1747654567534,0.5838701,103020.0,103010.0,0.24387101]
[1747654567741,0.40845695,103020.0,103010.0,0.24387101]
[1747654567948,0.58387057,103020.0,103010.0,0.2341636]
[1747654568149,0.58387057,103020.0,103010.0,0.23416369]
[1747654568778,0.58434871,103020.0,103010.0,0.23416369]
[1747654568990,0.58534871,103020.0,103010.0,0.2438712]
[1747654569421,0.58634871,103020.0,103010.0,0.2438712]
[1747654569633,0.58634871,103020.0,103010.0,0.24387139]
[1747654570431,0.57664205,103020.0,103010.0,0.0303]
[1747654572223,0.22573405,103020.0,103010.0,0.61054562]
[1747654572426,0.04130374,103020.0,103010.0,0.60811899]
[1747654572630,0.00247814,103020.0,103010.0,0.61778033]
[1747654572827,0.00147814,103020.0,103010.0,0.61778033]
[1747654573034,0.01118423,103020.0,103010.0,0.71508973]
[1747654573299,0.04030402,103020.0,103010.0,0.6080733]
[1747654573423,0.23344108,103020.0,103010.0,0.62748784]
[1747654573631,0.23344108,103020.0,103010.0,0.61778071]
[1747654574036,0.23344108,103020.0,103010.0,0.62748803]
[1747654574240,0.22373499,103020.0,103010.0,0.60807339]
[1747654574552,0.40881499,103020.0,103010.0,0.58382494]
[1747654574755,0.39910861,103020.0,103010.0,0.34966134]
[1747654574961,0.2038635,103010.0,103000.0,0.0322]
[1747654575169,0.03883314,103000.0,102990.0,0.26504026]
[1747654575374,0.03883314,103000.0,102990.0,0.23591499]
[1747654575375,0.22330001,103000.0,102990.0,0.23591499]
[1747654575580,0.22330001,103000.0,102990.0,0.60504336]
[1747654575802,0.01941662,103000.0,102990.0,0.27917194]
[1747654575989,0.02912526,103000.0,102990.0,0.28888096]
[1747654576314,0.02912526,103000.0,102990.0,0.63988096]
[1747654576519,0.22330001,103000.0,102990.0,0.63988096]
[1747654576715,0.23300874,103000.0,102990.0,0.63988096]
[1747654576925,0.23300874,103000.0,102990.0,0.64971731]
[1747654577846,0.03883399,103000.0,102990.0,0.64971731]
[1747654578369,0.23300874,103000.0,102990.0,0.64971731]
[1747654578571,0.01941662,103000.0,102990.0,0.64971731]
[1747654578775,0.02912516,103000.0,102990.0,0.64971731]
[1747654579457,0.0388338,103000.0,102990.0,0.64971731]
[1747654579887,0.23300855,103000.0,102990.0,0.64971731]
[1747654582938,0.23300855,103000.0,102990.0,0.63029937]
[1747654583146,0.24271728,103000.0,102990.0,0.64971768]
[1747654583400,0.23300911,103000.0,102990.0,0.64000857]
[1747654583603,0.23300911,103000.0,102990.0,0.63029928]
[1747654584039,0.23300911,103000.0,102990.0,0.64000848]
[1747654585115,0.23300911,103000.0,102990.0,0.64971759]
[1747654588050,0.20971848,103000.0,102990.0,0.64971759]
[1747654588327,0.1941559,103010.0,103000.0,0.20388348]
[1747654588563,0.3796952,103020.0,103010.0,0.2135712]
[1747654588762,0.21402842,103020.0,103010.0,0.1941559]
[1747654588995,0.21402842,103020.0,103010.0,0.20629037]
[1747654589179,0.20432195,103020.0,103010.0,0.20386369]
[1747654589390,0.1946152,103020.0,103010.0,0.20386369]
[1747654590023,0.1946152,103020.0,103010.0,0.20586369]
[1747654591153,0.1946152,103020.0,103010.0,0.20786369]
[1747654591894,0.1946152,103020.0,103010.0,0.004]
[1747654592100,0.2110152,103020.0,103010.0,0.004]
[1747654592310,0.2272152,103020.0,103010.0,0.004]
[1747654592758,0.4122552,103020.0,103010.0,0.004]
[1747654593608,0.3796552,103020.0,103010.0,0.004]
[1747654594102,0.3796552,103020.0,103010.0,0.20786369]
[1747654594348,0.38936186,103020.0,103010.0,0.24957139]
[1747654595026,0.38936186,103020.0,103010.0,0.26898631]
[1747654595028,0.38936186,103020.0,103010.0,0.27869363]
[1747654595293,0.23344184,103020.0,103010.0,0.29323391]
[1747654596852,0.01989118,103020.0,103010.0,0.29323334]
[1747654597370,0.02959793,103020.0,103010.0,0.29323334]
[1747654597673,0.22373499,103020.0,103010.0,0.29323334]
[1747654599531,0.23344184,103020.0,103010.0,0.29323334]
[1747654600962,0.23344184,103020.0,103010.0,0.26411167]
[1747654601163,0.22373546,103020.0,103010.0,0.26411167]
[1747654601380,0.2140288,103020.0,103010.0,0.24841167]
[1747654601580,0.2140288,103020.0,103010.0,0.23211167]
[1747654601969,0.2140288,103020.0,103010.0,0.22240454]
[1747654602182,0.1946152,103020.0,103010.0,0.21269675]
[1747654602420,0.2105152,103020.0,103010.0,0.004]
[1747654602635,0.2259152,103020.0,103010.0,0.004]
[1747654604034,0.2105152,103020.0,103010.0,0.004]
[1747654605651,0.1946152,103020.0,103010.0,0.004]
[1747654606909,0.1946152,103020.0,103010.0,0.00642669]
[1747654607146,0.1946152,103020.0,103010.0,0.21029038]
[1747654607376,0.1946152,103020.0,103010.0,0.20786369]
[1747654611662,0.1946152,103020.0,103010.0,0.01370779]
[1747654611866,0.1946152,103020.0,103010.0,0.01613448]
[1747654614394,0.17132725,103020.0,103010.0,0.01613448]
[1747654618786,0.17132725,103020.0,103010.0,0.00642669]
[1747654619297,0.18782725,103020.0,103010.0,0.00642669]
[1747654619504,0.20342725,103020.0,103010.0,0.00642669]
[1747654620753,0.17132725,103020.0,103010.0,0.21029038]
[1747654620951,0.17132725,103020.0,103010.0,0.20786369]
[1747654621971,0.18642725,103020.0,103010.0,0.004]
[1747654623194,0.18642725,103020.0,103010.0,0.1981559]
[1747654624981,0.17132725,103020.0,103010.0,0.1981559]
[1747654625209,0.18772725,103020.0,103010.0,0.1981559]
[1747654625477,0.20352725,103020.0,103010.0,0.20786369]
[1747654626357,0.18772725,103020.0,103010.0,0.20786369]
[1747654626574,0.17132725,103020.0,103010.0,0.20786369]
[1747654629435,0.18632725,103020.0,103010.0,0.20786369]
[1747654629661,0.18632725,103020.0,103010.0,0.004]
[1747654629863,0.16303931,103020.0,103010.0,0.004]
[1747654630000,0.17823931,103020.0,103010.0,0.004]
[1747654630419,0.17823931,103020.0,103010.0,0.1981559]
[1747654631668,0.17823931,103020.0,103010.0,0.004]
[1747654632915,0.14803931,103020.0,103010.0,0.20786369]
[1747654634468,0.18003931,103020.0,103010.0,0.004]
[1747654637296,0.18003931,103020.0,103010.0,0.1981559]
[1747654637510,0.14803931,103020.0,103010.0,0.004]
[1747654637749,0.14803931,103020.0,103010.0,0.0064267]
[1747654638202,0.16433931,103020.0,103010.0,0.0064267]
[1747654638390,0.14803931,103020.0,103010.0,0.0064267]
[1747654639265,0.14803931,103020.0,103010.0,0.004]
[1747654639486,0.17853931,103020.0,103010.0,0.004]
[1747654641038,0.17963931,103020.0,103010.0,0.004]
[1747654644585,0.16333931,103020.0,103010.0,0.004]
[1747654645073,0.14005118,103020.0,103010.0,0.004]
[1747654645407,0.15595118,103020.0,103010.0,0.004]
[1747654648465,0.15595118,103020.0,103010.0,0.1981559]
[1747654648985,0.16565793,103020.0,103010.0,0.2175712]
[1747654649193,0.40813638,103020.0,103010.0,0.23698574]
[1747654649378,0.24266998,103020.0,103010.0,0.23698593]
[1747654649577,0.41784379,103020.0,103010.0,0.22727861]
[1747654649831,0.41784379,103020.0,103010.0,0.24367861]
[1747654650269,0.40813732,103020.0,103010.0,0.20786369]
[1747654650498,0.40813732,103020.0,103010.0,0.21757139]
[1747654652019,0.40813732,103020.0,103010.0,0.22727899]
[1747654652241,0.40813732,103020.0,103010.0,0.26169391]
[1747654652446,0.40813732,103020.0,103010.0,0.2676865]
[1747654653150,0.00970638,103020.0,103010.0,0.26768555]
[1747654653367,0.41784304,103020.0,103010.0,0.26768555]
[1747654654595,0.22370598,103020.0,103010.0,0.26768555]
[1747654654805,0.41784304,103020.0,103010.0,0.26768574]
[1747654655901,0.41784304,103020.0,103010.0,0.27739296]
[1747654656095,0.21399913,103020.0,103010.0,0.27739249]